fUSD/lending_fUSD_20251212
["ID","MTS","AMOUNT","RATE_DAILY","PERIOD"]
[398388047,1765575038481,-150.0,0.0001665,2]
[398388048,1765575038491,-150.0,0.00016674,2]
[398388049,1765575038500,-150.0,0.0001668,2]
[398388050,1765575038509,-150.0,0.0001668,2]
[398388051,1765575038518,-150.0,0.000167,2]
[398388052,1765575038532,-200.0,0.00016723,2]
[398388053,1765575038541,-150.0,0.00016729,2]
[398388054,1765575038550,-150.0,0.0001674,2]
[398388055,1765575038560,-159.22629929,0.00016741,2]
[398388057,1765575039902,-1434.6,0.00016741,2]
[398388058,1765575039914,-340.3266224,0.00016741,2]
[398388059,1765575039926,-65.84707831,0.00016741,2]
[398388060,1765575039935,-382.15,0.00016741,2]
[398388061,1765575039945,-150.0,0.0001675,2]
[398388062,1765575039954,-150.0,0.00016768,2]
[398388063,1765575039965,-150.0,0.000168,2]
[398388064,1765575039975,-150.0,0.000168,2]
[398388065,1765575039984,-150.0,0.000168,2]
[398388066,1765575039995,-150.0,0.000168,2]
[398388067,1765575040005,-150.0,0.000168,2]
[398388068,1765575040015,-2229.79077931,0.0001682,2]
[398388069,1765575040024,-150.0,0.00016835,2]
[398388070,1765575040034,-150.0,0.0001685,2]
[398388071,1765575040043,-150.0,0.00016863,2]
[398388072,1765575040053,-150.0,0.000169,2]
[398388073,1765575040063,-200.0,0.0001691,2]
[398388074,1765575040071,-500.0,0.0001691,2]
[398388075,1765575040081,-200.0,0.0001691,2]
[398388076,1765575040091,-150.0,0.0001692,2]
[398388077,1765575040101,-150.0,0.0001692,2]
[398388078,1765575040111,-150.0,0.0001692,2]
[398388079,1765575040120,-150.0,0.0001692,2]
[398388080,1765575040129,-150.0,0.0001692,2]
[398388081,1765575040140,-150.0,0.00016941,2]
[398388082,1765575040150,-150.0,0.0001695,2]
[398388083,1765575040159,-150.0,0.0001695,2]
[398388084,1765575040169,-150.0,0.0001695,2]
[398388085,1765575040178,-150.0,0.00016958,2]
[398388086,1765575040188,-500.0,0.00016973,2]
[398388087,1765575040197,-500.0,0.00016973,2]
[398388088,1765575040206,-500.0,0.00016973,2]
[398388089,1765575040215,-500.0,0.00016973,2]
[398388090,1765575040225,-500.0,0.00016973,2]
[398388091,1765575040234,-500.0,0.00016973,2]
[398388092,1765575040243,-500.0,0.00016973,2]
[398388094,1765575040253,-500.0,0.00016973,2]
[398388096,1765575040262,-500.0,0.00016973,2]
[398388098,1765575040271,-500.0,0.00016973,2]
[398388099,1765575040281,-500.0,0.00016973,2]
[398388100,1765575040290,-500.0,0.00016973,2]
[398388101,1765575040300,-500.0,0.00016973,2]
[398388102,1765575040309,-501.81107158,0.00016973,2]
[398388103,1765575040319,-375.68960563,0.00016973,2]
[398388104,1765575040328,-500.0,0.00016973,2]
[398388105,1765575040338,-264.87,0.00016973,2]
[398388106,1765575040347,-151.0,0.00016997,2]
[398388107,1765575040356,-151.0,0.00016997,2]
[398388109,1765575040365,-200.30899218,0.00016999,2]
[398388111,1765575040375,-150.0,0.00017,2]
[398388112,1765575040384,-2229.79077931,0.00017,2]
[398388113,1765575040393,-253757.48108405,0.00017,2]
[398388114,1765575040402,-150.0,0.0001704,2]
[398388115,1765575040413,-150.0,0.0001704,2]
[398388116,1765575040423,-150.0,0.00017047,2]
[398388117,1765575040432,-150.0,0.0001705,2]
[398388118,1765575040441,-150.0,0.00017053,2]
[398388119,1765575040451,-500.0,0.00017099,2]
[398388120,1765575040460,-250.0,0.00017099,2]
[398388121,1765575040470,-1499.0,0.00017099,2]
[398388122,1765575040480,-500.0,0.00017099,2]
[398388123,1765575040489,-250.0,0.00017099,2]
[398388124,1765575040498,-3036.1429803,0.00017099,2]
[398388125,1765575040507,-500.0,0.00017099,2]
[398388126,1765575040516,-250.0,0.00017099,2]
[398388127,1765575040527,-500.0,0.00017099,2]
[398388128,1765575040538,-250.0,0.00017099,2]
[398388129,1765575040548,-250.0,0.00017099,2]
[398388130,1765575040557,-500.0,0.00017099,2]
[398388131,1765575040567,-241.0,0.00017099,2]
[398388132,1765575040576,-250.0,0.00017099,2]
[398388133,1765575040586,-500.0,0.00017099,2]
[398388134,1765575040595,-250.0,0.00017099,2]
[398388135,1765575040606,-607.04284567,0.00017099,2]
[398388136,1765575040615,-151.0,0.00017099,2]
[398388137,1765575040626,-500.0,0.00017099,2]
[398388138,1765575040636,-500.0,0.00017099,2]
[398388139,1765575040647,-151.0,0.00017099,2]
[398388140,1765575040657,-500.0,0.00017099,2]
[398388141,1765575040667,-500.0,0.00017099,2]
[398388142,1765575040676,-500.0,0.00017099,2]
[398388143,1765575040686,-500.0,0.00017099,2]
[398388144,1765575040695,-500.0,0.00017099,2]
[398388145,1765575040704,-500.0,0.00017099,2]
[398388146,1765575040714,-1000.0,0.00017099,2]
[398388147,1765575040723,-500.0,0.00017099,2]
[398388148,1765575040732,-151.0,0.00017099,2]
[398388149,1765575040741,-500.0,0.00017099,2]
[398388150,1765575040750,-151.0,0.00017099,2]
[398388151,1765575040759,-1000.0,0.00017099,2]
[398388152,1765575040768,-500.0,0.00017099,2]
[398388153,1765575040777,-574.12855637,0.00017099,2]
[398388154,1765575040787,-500.0,0.00017099,2]
[398388155,1765575040796,-1000.0,0.00017099,2]
[398388156,1765575040806,-500.0,0.00017099,2]
[398388157,1765575040815,-500.0,0.00017099,2]
[398388158,1765575040825,-1000.0,0.00017099,2]
[398388159,1765575040835,-544.08822076,0.00017099,2]
[398388160,1765575040844,-500.0,0.00017099,2]
[398388161,1765575040853,-1000.0,0.00017099,2]
[398388162,1765575040863,-500.0,0.00017099,2]
[398388163,1765575040872,-1000.0,0.00017099,2]
[398388164,1765575040880,-500.0,0.00017099,2]
[398388165,1765575040890,-1000.0,0.00017099,2]
[398388166,1765575040899,-1000.0,0.00017099,2]
[398388167,1765575040908,-578.20924308,0.00017099,2]
[398388168,1765575040917,-1000.0,0.00017099,2]
[398388169,1765575040926,-1000.0,0.00017099,2]
[398388170,1765575040935,-1000.0,0.00017099,2]
[398388171,1765575040944,-1000.0,0.00017099,2]
[398388172,1765575040953,-1000.0,0.00017099,2]
[398388173,1765575040962,-500.0,0.00017099,2]
[398388174,1765575040971,-1000.0,0.00017099,2]
[398388175,1765575040980,-1000.0,0.00017099,2]
[398388176,1765575040989,-1000.0,0.00017099,2]
[398388177,1765575040999,-500.0,0.00017099,2]
[398388178,1765575041007,-1000.0,0.00017099,2]
[398388179,1765575041016,-1000.0,0.00017099,2]
[398388180,1765575041025,-500.0,0.00017099,2]
[398388181,1765575041035,-500.0,0.00017099,2]
[398388182,1765575041044,-1000.0,0.00017099,2]
[398388183,1765575041053,-500.0,0.00017099,2]
[398388184,1765575041062,-1000.0,0.00017099,2]
[398388185,1765575041071,-500.0,0.00017099,2]
[398388186,1765575041080,-500.0,0.00017099,2]
[398388187,1765575041090,-1000.0,0.00017099,2]
[398388188,1765575041100,-500.0,0.00017099,2]
[398388189,1765575041109,-500.0,0.00017099,2]
[398388190,1765575041119,-1000.0,0.00017099,2]
[398388191,1765575041128,-500.0,0.00017099,2]
[398388192,1765575041137,-1000.0,0.00017099,2]
[398388193,1765575041147,-641.89228042,0.00017099,2]
[398388194,1765575041156,-1000.0,0.00017099,2]
[398388195,1765575041165,-300.0,0.00017099,2]
[398388196,1765575041175,-250.0,0.00017099,2]
[398388197,1765575041185,-250.0,0.00017099,2]
[398388198,1765575041194,-200.0,0.00017099,2]
[398388199,1765575041204,-250.0,0.00017099,2]
[398388200,1765575041214,-207.4,0.00017099,2]
[398388201,1765575041223,-250.0,0.00017099,2]
[398388202,1765575041234,-215.0738,0.00017099,2]
[398388203,1765575041244,-250.0,0.00017099,2]
[398388204,1765575041254,-223.0315306,0.00017099,2]
[398388205,1765575041263,-250.0,0.00017099,2]
[398388206,1765575041273,-231.28369723,0.00017099,2]
[398388207,1765575041283,-250.0,0.00017099,2]
[398388208,1765575041292,-239.84119403,0.00017099,2]
[398388209,1765575041302,-250.0,0.00017099,2]
[398388210,1765575041311,-248.71531821,0.00017099,2]
[398388211,1765575041320,-257.91778498,0.00017099,2]
[398388212,1765575041330,-267.46074303,0.00017099,2]
[398388213,1765575041339,-277.35679052,0.00017099,2]
[398388214,1765575041349,-150.0,0.000171,2]
[398388215,1765575041358,-150.0,0.000171,2]
[398388216,1765575041368,-150.0,0.000171,2]
[398388217,1765575041377,-150.0,0.000171,2]
[398388218,1765575041387,-150.0,0.000171,2]
[398388219,1765575041396,-552.37,0.00017123,2]
[398388220,1765575041406,-703.67,0.00017123,2]
[398388221,1765575041416,-480.51,0.00017123,2]
[398388222,1765575041426,-150.0,0.00017147,2]
[398388223,1765575041435,-150.0,0.0001715,2]
[398388224,1765575041444,-151.0,0.00017151,2]
[398388225,1765575041454,-150.0,0.00017153,2]
[398388226,1765575041463,-1499.0,0.00017154,2]
[398388227,1765575041473,-200.0,0.00017158,2]
[398388228,1765575041484,-200.0,0.00017158,2]
[398388229,1765575041494,-250.0,0.00017158,2]
[398388230,1765575041503,-150.0,0.0001716,2]
[398388231,1765575041512,-150.0,0.0001716,2]
[398388232,1765575041523,-2229.79077931,0.0001718,2]
[398388233,1765575041537,-150.0,0.000172,2]
[398388234,1765575041546,-1499.0,0.00017209,2]
[398388235,1765575041556,-150.0,0.00017242,2]
[398388236,1765575041566,-264.87,0.00017247,2]
[398388237,1765575041577,-150.0,0.0001725,2]
[398388238,1765575041586,-150.0,0.0001725,2]
[398388239,1765575041596,-150.0,0.0001725,2]
[398388240,1765575041608,-150.0,0.00017259,2]
[398388241,1765575041617,-356.1,0.0001726,2]
[398388242,1765575041627,-356.32,0.0001726,2]
[398388243,1765575041636,-178.16,0.0001726,2]
[398388244,1765575041646,-178.16,0.0001726,2]
[398388245,1765575041655,-463.9,0.0001726,2]
[398388246,1765575041664,-178.16,0.0001726,2]
[398388247,1765575041673,-178.16,0.0001726,2]
[398388248,1765575041682,-1499.0,0.00017264,2]
[398388249,1765575041692,-150.0,0.0001728,2]
[398388250,1765575041702,-150.0,0.0001728,2]
[398388251,1765575041711,-150.0,0.0001728,2]
[398388252,1765575041720,-150.0,0.0001728,2]
[398388253,1765575041729,-150.0,0.0001728,2]
[398388254,1765575041739,-150.0,0.000173,2]
[398388255,1765575041748,-4691.0,0.0001733,2]
[398388256,1765575041757,-150.0,0.00017337,2]
[398388257,1765575041767,-150.0,0.0001735,2]
[398388258,1765575041776,-2229.79077931,0.0001736,2]
[398388259,1765575041785,-150.0,0.00017365,2]
[398388260,1765575041794,-150.0,0.000174,2]
[398388261,1765575041803,-150.0,0.000174,2]
[398388262,1765575041813,-150.0,0.000174,2]
[398388263,1765575041825,-150.0,0.000174,2]
[398388264,1765575042056,-150.0,0.000174,2]
[398388265,1765575042066,-150.0,0.00017432,2]
[398388266,1765575042076,-150.0,0.0001745,2]
[398388267,1765575042085,-200.0,0.00017458,2]
[398388268,1765575042094,-500.0,0.00017458,2]
[398388269,1765575042103,-200.0,0.00017458,2]
[398388270,1765575042112,-150.0,0.0001746,2]
[398388271,1765575042122,-150.0,0.00017471,2]
[398388272,1765575042132,-300.0,0.00017472,2]
[398388273,1765575042142,-331.88258423,0.00017472,2]
[398388274,1765575042151,-150.0,0.000175,2]
[398388275,1765575042161,-1420.0,0.000175,2]
[398388276,1765575042170,-150.0,0.0001752,2]
[398388277,1765575042180,-150.0,0.0001752,2]
[398388278,1765575042190,-1000.0,0.00017521,2]
[398388279,1765575042200,-1000.0,0.00017521,2]
[398388280,1765575042209,-1000.0,0.00017521,2]
[398388281,1765575042219,-1000.0,0.00017521,2]
[398388282,1765575042229,-1003.13580783,0.00017521,2]
[398388283,1765575042239,-264.87,0.00017521,2]
[398388284,1765575042249,-150.0,0.00017526,2]
[398388285,1765575042258,-2229.79077931,0.0001754,2]
[398388286,1765575042268,-200.72388215,0.00017544,2]
[398388287,1765575042278,-150.0,0.0001755,2]
[398388288,1765575042287,-150.0,0.0001755,2]
[398388289,1765575042297,-150.0,0.0001755,2]
[398388290,1765575042307,-150.0,0.0001755,2]
[398388291,1765575042317,-1360.05379776,0.00017569,2]
[398388292,1765575042326,-150.0,0.00017576,2]
[398388293,1765575042336,-150.0,0.000176,2]
[398388294,1765575042345,-320.0,0.00017604,2]
[398388295,1765575042355,-150.0,0.00017621,2]
[398388296,1765575042364,-150.0,0.0001764,2]
[398388297,1765575042374,-150.0,0.0001764,2]
[398388298,1765575042383,-150.0,0.0001764,2]
[398388299,1765575042393,-150.0,0.0001764,2]
[398388300,1765575042402,-150.0,0.0001764,2]
[398388301,1765575042412,-4461.93626897,0.0001764,2]
[398388308,1765575043071,-635.36578393,0.0001764,2]
[398388309,1765575043080,-159.61,0.00017647,2]
[398388310,1765575043090,-151.0,0.00017647,2]
[398388312,1765575043099,-151.0,0.00017647,2]
[398388313,1765575043109,-151.0,0.00017647,2]
[398388314,1765575043118,-595.37131296,0.00017647,2]
[398388315,1765575043127,-150.0,0.0001765,2]
[398388316,1765575043137,-150.0,0.00017682,2]
[398388317,1765575043146,-420.0,0.00017698,2]
[398388318,1765575043156,-150.0,0.000177,2]
[398388319,1765575043168,-150.0,0.000177,2]
[398388320,1765575043180,-150.0,0.000177,2]
[398388321,1765575043190,-1000.0,0.000177,2]
[398388322,1765575043200,-150.0,0.00017716,2]
[398388323,1765575043210,-2229.79077931,0.0001772,2]
[398388324,1765575043220,-150.0,0.00017724,2]
[398388325,1765575043230,-500.0,0.00017724,2]
[398388326,1765575043240,-150.0,0.00017724,2]
[398388327,1765575043251,-150.0,0.00017724,2]
[398388328,1765575043261,-150.0,0.00017724,2]
[398388329,1765575043272,-150.0,0.00017724,2]
[398388330,1765575043282,-186.43349316,0.00017724,2]
[398388331,1765575043291,-150.0,0.00017724,2]
[398388332,1765575043301,-150.0,0.00017724,2]
[398388333,1765575043311,-150.0,0.00017724,2]
[398388334,1765575043321,-150.36814503,0.00017724,2]
[398388335,1765575043331,-152.52135053,0.00017724,2]
[398388336,1765575043342,-150.0,0.00017724,2]
[398388337,1765575043352,-150.0,0.00017724,2]
[398388338,1765575043362,-150.34355164,0.00017724,2]
[398388339,1765575043374,-150.0,0.00017724,2]
[398388341,1765575043383,-200.0,0.00017724,2]
[398388343,1765575043393,-150.0,0.00017724,2]
[398388345,1765575043403,-150.0,0.00017724,2]
[398388346,1765575043412,-150.0,0.00017724,2]
[398388347,1765575043421,-150.0,0.00017724,2]
[398388348,1765575043431,-500.0,0.00017724,2]
[398388349,1765575043440,-500.0,0.00017724,2]
[398388350,1765575043450,-500.0,0.00017724,2]
[398388351,1765575043460,-150.0,0.00017724,2]
[398388352,1765575043471,-201.55115124,0.00017724,2]
[398388353,1765575043482,-500.0,0.00017724,2]
[398388354,1765575043491,-150.0,0.00017724,2]
[398388355,1765575043502,-150.0,0.00017724,2]
[398388357,1765575043512,-150.0,0.00017724,2]
[398388358,1765575043522,-150.0,0.00017724,2]
[398388359,1765575043536,-910.0,0.0001775,2]
[398388360,1765575043548,-1196.0,0.0001775,2]
[398388361,1765575043557,-1606.0,0.0001775,2]
[398388362,1765575043567,-613.095,0.0001775,2]
[398388363,1765575043577,-3247.19389354,0.0001775,2]
[398388364,1765575043589,-201.80610646,0.0001775,2]
[398388365,1765575043600,-150.0,0.0001775,2]
[398388366,1765575043610,-151.0,0.0001775,2]
[398388367,1765575043620,-151.0,0.0001775,2]
[398388368,1765575043631,-151.0,0.0001775,2]
[398388369,1765575043640,-1610.34164249,0.00017753,2]
[398388370,1765575043650,-151.0,0.00017753,2]
[398388371,1765575043659,-151.0,0.00017753,2]
[398388372,1765575043669,-151.0,0.00017753,2]
[398388373,1765575043679,-150.0,0.0001776,2]
[398388374,1765575043689,-150.0,0.0001776,2]
[398388375,1765575043700,-1680.0,0.00017787,2]
[398388376,1765575043710,-150.0,0.00017788,2]
[398388377,1765575043720,-168.0,0.00017792,2]
[398388378,1765575043730,-264.87,0.00017795,2]
[398388379,1765575043741,-150.0,0.000178,2]
[398388380,1765575043750,-500.0,0.00017808,2]
[398388381,1765575043760,-150.0,0.00017811,2]
[398388382,1765575043769,-150.0,0.0001782,2]
[398388383,1765575043779,-168.0,0.0001783,2]
[398388384,1765575043788,-150.0,0.0001785,2]
[398388385,1765575043798,-150.0,0.0001785,2]
[398388386,1765575043807,-150.0,0.0001785,2]
[398388387,1765575043817,-500.0,0.00017861,2]
[398388388,1765575043827,-298.0,0.00017861,2]
[398388389,1765575043837,-150.0,0.00017861,2]
[398388390,1765575043847,-272.31261393,0.00017861,2]
[398388391,1765575043857,-150.0,0.00017861,2]
[398388392,1765575043866,-150.0,0.00017861,2]
[398388393,1765575043876,-150.0,0.00017861,2]
[398388394,1765575043886,-150.0,0.00017861,2]
[398388395,1765575043895,-85.59477018,0.00017861,2]
[398388396,1765575046046,-2655.771,0.0001775,2]
[398388397,1765575046057,-64.40522982,0.00017861,2]
[398388398,1765575046067,-500.0,0.00017861,2]
[398388399,1765575046077,-130.77719738,0.00017861,2]
[398388400,1765575046091,-369.22280262,0.00017861,2]
[398388402,1765575046101,-500.0,0.00017861,2]
[398388403,1765575046111,-500.0,0.00017861,2]
[398388405,1765575046120,-150.0,0.00017861,2]
[398388407,1765575046130,-150.0,0.00017861,2]
[398388409,1765575046140,-150.0,0.00017861,2]
[398388411,1765575046149,-150.0,0.0001788,2]
[398388413,1765575046159,-150.0,0.0001788,2]
[398388415,1765575046169,-150.0,0.00017894,2]
[398388417,1765575046180,-159.58913941,0.00017898,2]
[398388418,1765575046190,-11445.62991621,0.000179,2]
[398388419,1765575046200,-902.749,0.000179,2]
[398388420,1765575046210,-150.0,0.000179,2]
[398388421,1765575046220,-1494.94997451,0.000179,2]
[398388429,1765575270562,512.67,0.00024658,30]
[398388442,1765576231846,-166.66,0.00015834,2]
[398388443,1765576231856,-166.66,0.00016168,2]
[398388444,1765576231866,-300.0,0.00016199,2]
[398388445,1765576231875,-1200.0,0.00016199,2]
[398388446,1765576231885,-83.61521517,0.000162,2]
[398388447,1765576231911,-66.38478483,0.000162,2]
[398388448,1765576231921,-150.0,0.000162,2]
[398388449,1765576231931,-150.0,0.000162,2]
[398388450,1765576231940,-150.0,0.000162,2]
[398388451,1765576231949,-150.0,0.000162,2]
[398388452,1765576231959,-150.0,0.000162,2]
[398388453,1765576231969,-150.0,0.000162,2]
[398388454,1765576231978,-186.87039621,0.000162,2]
[398388455,1765576231988,-150.0,0.000162,2]
[398388456,1765576231997,-150.0,0.000162,2]
[398388457,1765576232007,-150.0,0.000162,2]
[398388458,1765576232017,-150.4153374,0.000162,2]
[398388459,1765576232027,-150.0,0.000162,2]
[398388460,1765576232036,-150.0,0.000162,2]
[398388461,1765576232046,-175.31,0.00016347,2]
[398388462,1765576232056,-150.0,0.0001635,2]
[398388463,1765576232066,-500.0,0.00016371,2]
[398388464,1765576232076,-500.0,0.00016371,3]
[398388465,1765576232086,-500.0,0.00016371,4]
[398388466,1765576232095,-150.0,0.00016457,2]
[398388467,1765576232105,-150.0,0.000165,2]
[398388468,1765576232114,-166.66,0.00016501,2]
[398388469,1765576232134,-150.0,0.0001656,2]
[398388470,1765576232144,-150.0,0.0001656,2]
[398388471,1765576232155,-150.0,0.0001656,2]
[398388472,1765576232164,-517.2454624,0.00016576,2]
[398388473,1765576232174,-1798.0,0.00016599,2]
[398388474,1765576232184,-2385.42,0.00016614,2]
[398388475,1765576232194,-723.34,0.00016641,2]
[398388476,1765576232204,-150.0,0.0001665,2]
[398388477,1765576232214,-150.0,0.0001665,2]
[398388478,1765576232223,-150.0,0.0001665,2]
[398388479,1765576232232,-150.0,0.0001665,2]
[398388480,1765576232242,-150.0,0.00016714,2]
[398388481,1765576232251,-1971.06,0.00016765,2]
[398388482,1765576232260,-150.99,0.00016765,2]
[398388483,1765576232269,-1570.31,0.00016765,5]
[398388484,1765576232278,-150.0,0.000168,2]
[398388485,1765576232288,-166.66,0.00016834,2]
[398388486,1765576232297,-703.67,0.00016841,2]
[398388487,1765576232307,-150.0,0.0001692,2]
[398388488,1765576232316,-150.0,0.0001692,2]
[398388489,1765576232325,-150.0,0.0001692,2]
[398388490,1765576232334,-150.0,0.0001695,2]
[398388491,1765576232344,-150.0,0.00016971,2]
[398388492,1765576232354,-151.49,0.00016973,2]
[398388493,1765576232364,-151.73,0.00016973,2]
[398388494,1765576232373,-150.92,0.00016973,2]
[398388496,1765576232383,-152.6,0.00016973,2]
[398388498,1765576232392,-500.0,0.00016973,2]
[398388531,1765576232682,-9999.99,0.00016973,2]
[398388533,1765576232692,-1358.78,0.00016973,2]
[398388535,1765576232702,-999.99,0.00016973,2]
[398388537,1765576232712,-150.99,0.00016973,2]
[398388539,1765576232722,-1543.62,0.00016973,2]
[398388541,1765576232732,-500.0,0.00016973,2]
[398388543,1765576232742,-500.0,0.00016973,2]
[398388545,1765576232751,-500.0,0.00016973,2]
[398388547,1765576232760,-500.0,0.00016973,2]
[398388549,1765576232770,-500.0,0.00016973,2]
[398388551,1765576232779,-150.04,0.00016999,2]
[398388553,1765576232788,-151.83,0.00016999,2]
[398388555,1765576232798,-151.17,0.00016999,2]
[398388557,1765576232807,-500.0,0.00016999,2]
[398388559,1765576232816,-150.0,0.00017003,2]
[398388561,1765576232825,-703.67,0.00017041,2]
[398388563,1765576232834,-153.01637236,0.00017076,2]
[398388566,1765576232844,-151.0,0.00017076,2]
[398388568,1765576232852,-578.20924308,0.00017076,2]
[398388570,1765576232862,-1499.0,0.00017076,2]
[398388572,1765576232871,-200.0,0.00017076,2]
[398388574,1765576232880,-207.4,0.00017076,2]
[398388576,1765576232890,-215.0738,0.00017076,2]
[398388578,1765576232899,-223.0315306,0.00017076,2]
[398388580,1765576232908,-231.28369723,0.00017076,2]
[398388582,1765576232917,-239.84119403,0.00017076,2]
[398388584,1765576232926,-248.71531821,0.00017076,2]
[398388586,1765576232936,-257.91778498,0.00017076,2]
[398388588,1765576232946,-267.46074303,0.00017076,2]
[398388590,1765576232955,-277.35679052,0.00017076,2]
[398388592,1765576232964,-300.0,0.00017076,2]
[398388594,1765576232973,-150.0,0.000171,2]
[398388596,1765576232983,-150.0,0.000171,2]
[398388598,1765576232994,-150.0,0.000171,2]
[398388600,1765576233004,-150.0,0.000171,2]
[398388602,1765576233013,-150.0,0.000171,2]
[398388603,1765576233023,-150.0,0.000171,2]
[398388606,1765576233033,-150.0,0.000171,2]
[398388608,1765576233043,-1499.0,0.00017131,2]
[398388609,1765576233054,-166.66,0.00017168,2]
[398388612,1765576233063,-168.0,0.00017177,2]
[398388613,1765576233073,-500.0,0.00017179,2]
[398388616,1765576233082,-1499.0,0.00017186,2]
[398388617,1765576233092,-150.0,0.00017229,2]
[398388620,1765576233101,-150.0,0.0001725,2]
[398388621,1765576233110,-150.0,0.0001728,2]
[398388622,1765576233120,-150.0,0.0001728,2]
[398388623,1765576233130,-150.0,0.0001728,2]
[398388624,1765576233140,-150.0,0.000174,2]
[398388625,1765576233150,-300.0,0.00017418,2]
[398388626,1765576233160,-331.88258423,0.00017418,2]
[398388627,1765576233169,-150.0,0.00017486,2]
[398388628,1765576233179,-1210.0,0.000175,2]
[398388629,1765576233189,-166.66,0.00017501,2]
[398388630,1765576233198,-500.0,0.00017509,2]
[398388631,1765576233207,-159.86988484,0.00017509,2]
[398388632,1765576233215,-264.87,0.0001751,2]
[398388633,1765576233225,-200.0,0.0001751,2]
[398388634,1765576233234,-1000.0,0.0001751,2]
[398388635,1765576233243,-574.12855637,0.0001751,2]
[398388636,1765576233253,-1000.0,0.0001751,2]
[398388637,1765576233262,-151.0,0.0001751,2]
[398388638,1765576233271,-541.85290647,0.0001751,2]
[398388639,1765576233283,-458.14709353,0.0001751,2]
[398388640,1765576233292,-161.06626762,0.0001751,2]
[398388641,1765576233302,-200.0,0.0001751,2]
[398388642,1765576233311,-1000.0,0.0001751,2]
[398388643,1765576233319,-1000.0,0.0001751,2]
[398388644,1765576233328,-1000.0,0.0001751,2]
[398388645,1765576233337,-683.53605325,0.0001751,2]
[398388646,1765576233348,-316.46394675,0.0001751,2]
[398388647,1765576233357,-67.3122219,0.0001751,2]
[398388648,1765576233382,-825.596331,0.0001751,2]
[398388649,1765576233407,-107.0914471,0.0001751,2]
[398388650,1765576233416,-500.0,0.0001751,2]
[398388651,1765576233424,-200.0,0.0001751,2]
[398388652,1765576233433,-108.79982752,0.0001751,2]
[398388653,1765576233444,-352.59879329,0.0001751,2]
[398388654,1765576233454,-38.60137919,0.0001751,2]
[398388655,1765576233463,-500.0,0.0001751,2]
[398388656,1765576233472,-540.54225418,0.0001751,2]
[398388660,1765576238126,-3.54596658,0.0001751,2]
[398388661,1765576238137,-500.0,0.0001751,2]
[398388662,1765576238147,-369.84403342,0.0001751,2]
[398388663,1765576238296,-130.15596658,0.0001751,2]
[398388665,1765576238306,-500.0,0.0001751,2]
[398388667,1765576238316,-289.22403342,0.0001751,2]
[398388670,1765576238330,-210.77596658,0.0001751,2]
[398388672,1765576238340,-245.46609922,0.0001751,2]
[398388674,1765576238352,-254.53390078,0.0001751,2]
[398388675,1765576238364,-250.0,0.0001751,2]
[398388676,1765576238373,-250.0,0.0001751,2]
[398388677,1765576238383,-500.0,0.0001751,2]
[398388679,1765576238393,-250.0,0.0001751,2]